bitfinex/quotes_BTCUSD_20240803
["timestamp","ask_amount","ask_price","bid_price","bid_amount"]
[1722711250670,0.828032,60384.0,60383.0,0.1599]
[1722711250915,0.828032,60384.0,60378.0,0.1315]
[1722711250916,0.8281,60379.0,60378.0,0.2914]
[1722711251097,0.16562,60379.0,60378.0,0.2914]
[1722711251897,0.49686,60379.0,60378.0,0.2914]
[1722711252498,1.15934,60379.0,60378.0,0.1599]
[1722711252699,0.08291805,60386.0,60376.0,0.00083]
[1722711252700,1.159378,60377.0,60376.0,0.00083]
[1722711252964,2.12819794,60377.0,60376.0,0.00083]
[1722711253146,1.81104705,60377.0,60376.0,0.00083]
[1722711253341,1.24229605,60377.0,60376.0,0.00083]
[1722711253929,0.828127,60377.0,60376.0,0.00083]
[1722711254339,1.159378,60377.0,60376.0,0.00083]
[1722711254540,1.173378,60377.0,60376.0,0.00083]
[1722711254955,0.842127,60377.0,60376.0,0.00083]
[1722711255308,0.842127,60377.0,60376.0,0.01729877]
[1722711255527,0.524876,60377.0,60376.0,0.01729877]
[1722711255721,0.524876,60377.0,60376.0,0.15805512]
[1722711255722,0.193625,60377.0,60376.0,0.15805512]
[1722711256058,0.193625,60377.0,60376.0,0.65494012]
[1722711256059,0.014,60377.0,60376.0,0.65494012]
[1722711256273,0.014,60377.0,60376.0,0.15805512]
[1722711256477,0.014,60377.0,60376.0,0.65494012]
[1722711256895,0.165612,60382.0,60378.0,0.165622]
[1722711257057,0.00157439,60381.0,60378.0,0.165622]
[1722711257261,0.165612,60382.0,60379.0,0.00924895]
[1722711257676,0.00157439,60381.0,60377.0,0.165625]
[1722711257936,0.331201,60387.0,60376.0,0.14879877]
[1722711258128,0.00971396,60388.0,60380.0,0.331232]
[1722711258129,0.165602,60386.0,60380.0,0.331232]
[1722711258325,0.165602,60386.0,60377.0,0.1690632]
[1722711258326,0.00157439,60388.0,60383.0,0.331213]
[1722711258569,0.00157439,60388.0,60384.0,0.165606]
[1722711258570,0.16717039,60388.0,60384.0,0.165606]
[1722711258782,0.16650601,60389.0,60384.0,0.17484263]
[1722711258983,0.16650601,60389.0,60385.0,0.165604]
[1722711259091,0.16650601,60389.0,60385.0,0.165603]
[1722711259299,0.16650601,60389.0,60383.0,0.01646877]
[1722711259300,0.331192,60388.0,60383.0,0.01646877]
[1722711259506,0.165606,60384.0,60383.0,0.01646877]
[1722711259704,0.496819,60384.0,60383.0,0.01646877]
[1722711259905,1.159245,60384.0,60383.0,0.01646877]
[1722711260154,0.828032,60384.0,60383.0,0.01646877]
[1722711260681,1.18521673,60384.0,60383.0,0.01646877]
[1722711260842,1.30741673,60384.0,60383.0,0.01646877]
[1722711261411,0.99020373,60384.0,60383.0,0.01646877]
[1722711261546,1.65076762,60384.0,60383.0,0.01646877]
[1722711261755,1.159378,60377.0,60376.0,0.00083]
[1722711261956,1.86149794,60377.0,60376.0,0.00083]
[1722711262163,2.09921939,60377.0,60376.0,0.00083]
[1722711262583,2.12519654,60377.0,60376.0,0.00083]
[1722711263803,2.04227849,60377.0,60376.0,0.00083]
[1722711264119,2.05627849,60377.0,60376.0,0.00083]
[1722711264743,1.93255704,60377.0,60376.0,0.00083]
[1722711264954,2.07027182,60377.0,60376.0,0.00083]
[1722711265149,1.76680615,60377.0,60376.0,0.00083]
[1722711265349,1.90451966,60377.0,60376.0,0.00083]
[1722711266200,2.07027055,60377.0,60376.0,0.00083]
[1722711266402,2.56262155,60377.0,60376.0,0.00083]
[1722711266612,1.159686,60361.0,60360.0,0.00932]
[1722711267021,1.159686,60361.0,60360.0,0.01861582]
[1722711267333,1.159686,60361.0,60360.0,0.00932]
[1722711268198,1.161686,60361.0,60360.0,0.00932]
[1722711268409,1.159686,60361.0,60360.0,0.00932]
[1722711268608,1.288886,60361.0,60360.0,0.00932]
[1722711268882,1.32386795,60361.0,60360.0,0.00932]
[1722711269250,1.32686795,60361.0,60360.0,0.00932]
[1722711269658,1.32386795,60361.0,60360.0,0.00932]
[1722711270221,1.33386795,60361.0,60360.0,0.00932]
[1722711271402,1.307886,60361.0,60360.0,0.00932]
[1722711271605,1.142217,60361.0,60360.0,0.00932]
[1722711271753,1.307886,60361.0,60360.0,0.00932]
[1722711272169,0.019,60361.0,60360.0,0.28212]
[1722711272368,0.516008,60361.0,60360.0,0.28212]
[1722711272575,0.516008,60361.0,60360.0,0.29141582]
[1722711273005,0.019,60361.0,60360.0,0.29141582]
[1722711273663,0.019,60361.0,60360.0,1.28552871]
[1722711274066,0.019,60361.0,60360.0,1.29552871]
[1722711274442,0.019,60361.0,60360.0,1.28552871]
[1722711274587,0.019,60361.0,60360.0,1.29552871]
[1722711274796,0.019,60361.0,60360.0,1.63687371]
[1722711275003,0.019,60361.0,60360.0,2.10121871]
[1722711275004,0.01,60361.0,60360.0,2.10121871]
[1722711275210,0.02597935,60364.0,60360.0,2.10121871]
[1722711275211,0.02597935,60364.0,60363.0,1.11112]
[1722711275405,0.165624,60378.0,60372.0,0.331276]
[1722711275604,0.331209,60385.0,60375.0,0.331262]
[1722711275844,0.08540545,60389.0,60375.0,0.31693]
[1722711275845,0.165621,60379.0,60375.0,0.31693]
[1722711276001,0.331206,60386.0,60376.0,0.00925635]
[1722711276002,0.331233,60381.0,60376.0,0.00925635]
[1722711276204,0.165625,60377.0,60376.0,0.00925635]
[1722711276624,0.165624,60378.0,60376.0,0.00925635]
[1722711276792,0.08383106,60389.0,60376.0,0.00925635]
[1722711276793,0.496876,60377.0,60376.0,0.00925635]
[1722711277914,1.159378,60377.0,60376.0,0.00925635]
[1722711278138,0.496909,60373.0,60372.0,0.01646877]
[1722711278330,0.828182,60373.0,60372.0,0.02573499]
[1722711278521,1.490728,60373.0,60372.0,0.02573499]
[1722711278745,1.51670387,60373.0,60372.0,0.01646877]
[1722711279347,1.65741915,60373.0,60372.0,0.01646877]
[1722711279550,1.30017028,60373.0,60372.0,0.01646877]
[1722711279779,1.162455,60373.0,60372.0,0.01646877]
[1722711280177,1.176455,60373.0,60372.0,0.01646877]
[1722711280579,0.842182,60373.0,60372.0,0.01646877]
[1722711280975,1.173455,60373.0,60372.0,0.01646877]
[1722711281181,1.187455,60373.0,60372.0,0.01646877]
[1722711281562,1.29716719,60373.0,60372.0,0.01646877]
[1722711281777,1.32116719,60373.0,60372.0,0.01646877]
[1722711281964,1.3211674,60373.0,60372.0,0.01646877]
[1722711282193,1.183455,60373.0,60372.0,0.01646877]
[1722711282392,1.169455,60373.0,60372.0,0.01646877]
[1722711282805,1.183455,60373.0,60372.0,0.01646877]
[1722711282998,1.22343226,60373.0,60372.0,0.01646877]
[1722711283376,0.165667,60362.0,60360.0,0.16062]
[1722711283580,0.06397726,60373.0,60360.0,0.17708877]
[1722711283783,0.06397726,60373.0,60361.0,0.00929335]
[1722711283784,0.165669,60362.0,60361.0,0.00929335]
[1722711284190,0.165669,60361.0,60360.0,0.17708877]
[1722711284404,0.014,60373.0,60361.0,0.00929335]
[1722711284598,0.165669,60361.0,60360.0,0.18638459]
[1722711284830,0.165669,60361.0,60360.0,0.17708877]
[1722711285693,0.16958001,60362.0,60360.0,0.17708877]
[1722711285902,0.002,60361.0,60360.0,0.17708877]
[1722711286106,1.161686,60361.0,60360.0,0.17708877]
[1722711286314,1.161686,60361.0,60360.0,0.02578877]
[1722711286547,0.502008,60361.0,60360.0,0.02578877]
[1722711286757,0.833347,60361.0,60360.0,0.02578877]
[1722711287166,0.502008,60361.0,60360.0,0.02578877]
[1722711288007,0.005,60361.0,60360.0,0.02578877]
[1722711288221,0.005,60361.0,60360.0,0.19146077]
[1722711288863,0.005,60361.0,60360.0,0.02578877]
[1722711289076,0.002,60361.0,60360.0,0.19146077]
[1722711289285,0.003,60361.0,60360.0,0.19146077]
[1722711289521,0.001,60361.0,60360.0,0.52280577]
[1722711289758,0.001,60361.0,60360.0,1.67544666]
[1722711289759,0.00094939,60361.0,60360.0,1.67544666]
[1722711289973,0.00094939,60361.0,60360.0,1.67644666]
[1722711290181,0.00094939,60361.0,60360.0,1.79644666]
[1722711290830,0.00091301,60362.0,60360.0,1.79644666]
[1722711290831,0.00091301,60362.0,60361.0,1.189686]
[1722711291045,0.00091301,60362.0,60361.0,2.00097589]
[1722711291457,0.00091301,60362.0,60361.0,2.03868504]
[1722711291697,0.00091301,60362.0,60361.0,1.66963689]
[1722711292123,0.00091301,60362.0,60361.0,1.67063689]
[1722711292332,0.00091301,60362.0,60361.0,1.66963689]
[1722711292755,0.00291301,60362.0,60361.0,1.67163689]
[1722711293006,0.00291301,60362.0,60361.0,1.67063689]
[1722711293207,0.00291301,60362.0,60361.0,2.93233689]
[1722711293426,0.02888792,60362.0,60361.0,2.93233689]
[1722711293971,0.02888792,60362.0,60361.0,3.27332742]
[1722711294191,0.02988792,60362.0,60361.0,3.41222831]
[1722711294628,0.00391301,60362.0,60361.0,3.41222831]
[1722711294827,0.00391301,60362.0,60361.0,3.37432742]
[1722711295327,0.00391301,60362.0,60361.0,3.38362077]
[1722711297022,0.00391301,60362.0,60361.0,3.38562077]
[1722711298370,0.00391301,60362.0,60361.0,3.42361341]
[1722711299605,0.00391301,60362.0,60361.0,3.75495241]
[1722711300008,0.00391301,60362.0,60361.0,3.92703651]
[1722711300409,0.00391301,60362.0,60361.0,3.59569751]
[1722711300691,0.00391301,60362.0,60361.0,3.47351341]
[1722711301059,0.00391301,60362.0,60361.0,3.47151341]
[1722711301260,0.00391301,60362.0,60361.0,3.45151341]
[1722711301475,0.00391301,60362.0,60361.0,0.98795224]
[1722711301636,0.00391301,60362.0,60361.0,0.93805224]
[1722711301839,0.463187,60371.0,60364.0,0.165661]
[1722711301840,0.165651,60368.0,60364.0,0.165661]
[1722711302043,0.12581301,60371.0,60365.0,0.16575089]
[1722711302242,0.0499,60376.0,60367.0,0.165653]
[1722711302243,0.02597616,60368.0,60367.0,0.165653]
[1722711302466,0.02597616,60368.0,60367.0,0.33140389]
[1722711302642,0.215529,60376.0,60372.0,0.165639]
[1722711302823,0.215529,60376.0,60375.0,0.165631]
[1722711302824,0.0499,60376.0,60375.0,0.165631]
[1722711303026,0.0499,60376.0,60375.0,1.66576789]
[1722711303244,0.0499,60376.0,60375.0,1.67502671]
[1722711303478,0.0499,60376.0,60375.0,1.67702671]
[1722711303680,0.0499,60376.0,60375.0,1.65502671]
[1722711303881,0.0499,60376.0,60375.0,1.67502671]
[1722711304531,0.0529,60376.0,60375.0,1.65502671]
[1722711304858,0.0569,60376.0,60375.0,1.67502671]
[1722711305021,0.00091301,60389.0,60388.0,0.302195]
[1722711305219,0.00091301,60389.0,60388.0,1.19310771]
[1722711305430,0.00091301,60389.0,60388.0,1.53021443]
[1722711305777,0.00091301,60389.0,60388.0,1.16902343]
[1722711305778,0.02687737,60389.0,60388.0,1.16902343]
[1722711306196,0.02687737,60389.0,60388.0,1.51021443]
[1722711306431,0.02687737,60389.0,60388.0,0.35704143]
[1722711306601,0.02687737,60389.0,60388.0,0.68823243]
[1722711306973,0.02687737,60389.0,60388.0,1.01942343]
[1722711307383,0.00091301,60389.0,60388.0,1.01942343]
[1722711307560,0.00091301,60389.0,60388.0,1.03142343]
[1722711307761,0.00091301,60389.0,60388.0,0.68823243]
[1722711308206,0.00091301,60389.0,60388.0,0.69123243]
[1722711308410,0.00091301,60389.0,60388.0,0.68823243]
[1722711308634,0.00091301,60389.0,60388.0,1.07242343]
[1722711308837,0.00091301,60389.0,60388.0,1.40361443]
[1722711309421,0.00091301,60389.0,60388.0,1.04242343]
[1722711309620,0.00091301,60389.0,60388.0,0.71123243]
[1722711309823,0.00091301,60389.0,60388.0,1.05142343]
[1722711309997,0.00191301,60389.0,60388.0,0.21344643]
[1722711310200,0.00191301,60389.0,60388.0,0.19044643]
[1722711310403,0.02787822,60389.0,60388.0,0.99895466]
[1722711310613,0.02787822,60389.0,60388.0,1.36114566]
[1722711310820,0.02787822,60389.0,60388.0,0.69276366]
[1722711311038,0.02887822,60389.0,60388.0,0.37157266]
[1722711311244,0.19347122,60389.0,60388.0,0.00922677]
[1722711311441,0.68245722,60389.0,60388.0,0.01322677]
[1722711311655,1.14334322,60389.0,60388.0,0.013]
[1722711311826,1.47452922,60389.0,60388.0,0.013]
[1722711312701,1.47452922,60389.0,60388.0,0.009]
[1722711312702,1.80571522,60389.0,60388.0,0.009]
[1722711313104,0.16563,60376.0,60372.0,0.165639]
[1722711313307,0.16563,60376.0,60373.0,0.67252295]
[1722711313534,0.496902,60374.0,60373.0,0.17501464]
[1722711313920,0.165634,60374.0,60373.0,0.17501464]
[1722711314166,0.165634,60374.0,60373.0,0.16575089]
[1722711314376,0.165634,60374.0,60373.0,0.17501464]
[1722711314584,0.331259,60376.0,60373.0,0.17501464]
[1722711314585,0.165628,60376.0,60373.0,0.17501464]
[1722711314727,0.625602,60374.0,60373.0,0.01126375]
[1722711314948,0.625602,60374.0,60373.0,0.002]
[1722711314949,1.11467,60374.0,60373.0,0.002]
[1722711315151,1.445938,60374.0,60373.0,0.002]
[1722711315553,1.777206,60374.0,60373.0,0.002]
[1722711316054,1.777206,60374.0,60372.0,0.01646877]
[1722711316055,1.619428,60373.0,60372.0,0.01646877]
[1722711316182,1.619428,60373.0,60350.0,4e-05]
[1722711316183,0.828347,60361.0,60350.0,4e-05]
[1722711316388,0.828347,60361.0,60360.0,0.02578877]
[1722711316389,1.446186,60361.0,60360.0,0.02578877]
[1722711316944,1.288386,60361.0,60360.0,0.02578877]
[1722711317584,1.293386,60361.0,60360.0,0.02578877]
[1722711319654,1.631725,60361.0,60360.0,0.02678877]
[1722711319903,2.06437589,60361.0,60360.0,7.7e-07]
[1722711320089,2.53347263,60361.0,60360.0,7.7e-07]
[1722711320304,2.40571489,60361.0,60360.0,7.7e-07]
[1722711320519,2.53347729,60361.0,60360.0,7.7e-07]
[1722711320739,2.53347729,60361.0,60350.0,4e-05]
[1722711320740,0.828485,60351.0,60350.0,4e-05]
[1722711320963,0.497091,60351.0,60350.0,4e-05]
[1722711321182,0.165697,60351.0,60350.0,4e-05]
[1722711321390,0.165692,60353.0,60350.0,4e-05]
[1722711321563,0.165695,60352.0,60350.0,4e-05]
[1722711321704,0.165695,60352.0,60350.0,0.00936049]
[1722711321907,0.165695,60352.0,60351.0,0.023]
[1722711322106,0.828473,60352.0,60351.0,0.03231802]
[1722711322339,0.165695,60352.0,60351.0,0.023]
[1722711322540,0.497084,60352.0,60351.0,0.00931802]
[1722711322768,0.497084,60352.0,60351.0,0.03231802]
[1722711323182,0.497084,60352.0,60351.0,0.023]
[1722711323183,0.828473,60352.0,60351.0,0.023]
[1722711323388,0.497091,60351.0,60350.0,4e-05]
[1722711323603,0.014,60351.0,60350.0,4e-05]
[1722711323831,0.165697,60351.0,60350.0,4e-05]
[1722711323994,0.165697,60351.0,60350.0,0.00936049]
[1722711324194,0.009,60352.0,60350.0,0.03236049]
[1722711324445,0.011,60352.0,60350.0,0.00936049]
[1722711324595,0.011,60352.0,60351.0,0.63976171]
[1722711324967,0.03698372,60352.0,60351.0,0.97115571]
[1722711325170,0.011,60352.0,60351.0,0.64907973]
[1722711325389,0.011,60352.0,60351.0,0.35846891]
[1722711325567,0.011,60352.0,60351.0,0.85555991]
[1722711325779,0.011,60352.0,60351.0,1.18695391]
[1722711325994,0.011,60352.0,60351.0,1.53834791]
[1722711326182,0.011,60352.0,60351.0,2.10334191]
[1722711326482,0.165648,60369.0,60364.0,0.165659]
[1722711326690,0.331283,60372.0,60360.0,0.331339]
[1722711326691,0.331283,60372.0,60365.0,0.023]
[1722711326891,0.008,60352.0,60351.0,0.35015089]
[1722711327095,0.331335,60362.0,60351.0,0.34915089]
[1722711327335,0.165674,60360.0,60356.0,0.165683]
[1722711327543,0.08291805,60364.0,60357.0,0.023]
[1722711327748,0.497034,60358.0,60357.0,0.023]
[1722711327950,0.08291805,60364.0,60350.0,4e-05]
[1722711328150,0.165697,60351.0,60350.0,4e-05]
[1722711328344,0.497091,60351.0,60350.0,4e-05]
[1722711328521,0.619891,60351.0,60350.0,4e-05]
[1722711328732,0.951285,60351.0,60350.0,4e-05]
[1722711329729,0.828485,60351.0,60350.0,4e-05]
[1722711330133,0.1228,60355.0,60350.0,4e-05]
[1722711330333,0.497091,60351.0,60350.0,0.00104]
[1722711330537,0.165697,60351.0,60350.0,0.00204]
[1722711330737,0.497091,60351.0,60350.0,0.00204]
[1722711331117,0.497091,60351.0,60350.0,4e-05]
[1722711331334,0.828485,60351.0,60350.0,4e-05]
[1722711331539,0.828485,60351.0,60350.0,0.00104]
[1722711331889,1.159879,60351.0,60350.0,0.00104]
[1722711332694,1.317879,60351.0,60350.0,4e-05]
[1722711332897,1.318879,60351.0,60350.0,4e-05]
[1722711333200,1.321879,60351.0,60350.0,4e-05]
[1722711333846,1.776073,60351.0,60350.0,4e-05]
[1722711334276,1.94182389,60351.0,60350.0,4e-05]
[1722711334481,2.11403602,60351.0,60350.0,4e-05]
[1722711334681,2.11103602,60351.0,60350.0,4e-05]
[1722711336074,2.11003602,60351.0,60350.0,4e-05]
[1722711336274,2.12403602,60351.0,60350.0,4e-05]
[1722711336573,2.11003602,60351.0,60350.0,4e-05]
[1722711336801,2.12403602,60351.0,60350.0,0.00104]
[1722711337119,2.13803602,60351.0,60350.0,0.00104]
[1722711337359,2.12404098,60351.0,60350.0,4e-05]
[1722711337567,2.1240406,60351.0,60350.0,4e-05]
[1722711337772,1.96582389,60351.0,60350.0,4e-05]
[1722711337979,2.1380393,60351.0,60350.0,4e-05]
[1722711339018,1.6505038,60351.0,60350.0,4e-05]
[1722711339334,1.81625469,60351.0,60350.0,4e-05]
[1722711339675,1.8160788,60351.0,60350.0,4e-05]
[1722711341010,1.49232458,60351.0,60350.0,4e-05]
[1722711341255,1.03813058,60351.0,60350.0,4e-05]
[1722711341659,0.20021208,60351.0,60350.0,4e-05]
[1722711341869,0.028,60351.0,60350.0,4e-05]
[1722711342098,0.525091,60351.0,60350.0,4e-05]
[1722711342306,0.525091,60351.0,60350.0,0.00936049]
[1722711342472,0.69727031,60351.0,60350.0,4e-05]
[1722711342681,0.68327031,60351.0,60350.0,0.00936049]
[1722711342888,1.00066431,60351.0,60350.0,4e-05]
[1722711343094,1.01966431,60351.0,60350.0,0.00104]
[1722711343457,1.50575831,60351.0,60350.0,0.00104]
[1722711343657,1.33705831,60351.0,60350.0,4e-05]
[1722711343872,1.34305831,60351.0,60350.0,0.00104]
[1722711344119,1.48081518,60351.0,60350.0,0.00104]
[1722711344476,1.14942118,60351.0,60350.0,0.00104]
[1722711345314,0.81802718,60351.0,60350.0,0.00104]
[1722711345559,0.18317931,60351.0,60350.0,0.15924]
[1722711345797,0.37486122,60351.0,60350.0,0.15924]
[1722711346002,0.37486122,60351.0,60350.0,0.16856049]
[1722711346003,0.20916422,60351.0,60350.0,0.16856049]
[1722711346867,0.18317931,60351.0,60350.0,0.16856049]
[1722711347932,0.34887631,60351.0,60350.0,0.16856049]
[1722711348143,0.18317931,60351.0,60350.0,0.16856049]
[1722711348352,0.011,60351.0,60350.0,0.16856049]
[1722711348570,1.01166479,60351.0,60350.0,0.16856049]
[1722711348782,0.34887679,60351.0,60350.0,0.16856049]
[1722711349420,0.68027079,60351.0,60350.0,0.16856049]
[1722711349626,0.34887679,60351.0,60350.0,0.16856049]
[1722711349842,0.68027079,60351.0,60350.0,0.16856049]
[1722711350256,0.68027079,60351.0,60350.0,0.15924]
[1722711350460,1.01166479,60351.0,60350.0,0.16856049]
[1722711350661,0.34887679,60351.0,60350.0,0.16856049]
[1722711350876,0.18317979,60351.0,60350.0,0.16856049]
[1722711351506,0.011,60351.0,60350.0,1.02006049]
[1722711351743,0.011,60351.0,60350.0,1.19581138]
[1722711351954,0.011,60351.0,60350.0,1.67871138]
[1722711352176,0.011,60351.0,60350.0,2.11011138]
[1722711352405,0.011,60351.0,60350.0,1.77671138]
[1722711352873,0.005,60351.0,60350.0,0.82713342]
[1722711353088,0.497091,60351.0,60350.0,0.01036049]
[1722711353301,0.165687,60355.0,60351.0,0.165697]
[1722711353505,0.33785625,60354.0,60350.0,0.18005949]
[1722711353712,0.17216725,60353.0,60352.0,0.00931556]
[1722711353888,0.33785925,60353.0,60351.0,0.00931802]
[1722711354165,0.17216725,60352.0,60350.0,0.00904]
[1722711354367,0.497091,60351.0,60350.0,0.00904]
[1722711354574,0.3378679,60351.0,60350.0,0.00904]
[1722711354755,0.3378681,60351.0,60350.0,0.00904]
[1722711354956,0.33886698,60351.0,60350.0,0.00504]
[1722711355191,0.66926098,60351.0,60350.0,0.00936049]
[1722711355414,0.66926098,60351.0,60350.0,4e-05]
[1722711355415,0.33786698,60351.0,60350.0,4e-05]
[1722711355623,0.17716998,60351.0,60350.0,0.00936049]
[1722711355826,0.17716998,60351.0,60350.0,4e-05]
[1722711356032,0.17716998,60351.0,60350.0,0.00936049]
[1722711356243,0.17716998,60351.0,60350.0,4e-05]
[1722711356447,0.17716998,60351.0,60350.0,0.00932049]
[1722711356664,0.17716998,60351.0,60348.0,0.160744]
[1722711356837,0.17716998,60351.0,60346.0,0.023]
[1722711356838,0.02689677,60360.0,60352.0,0.165693]
[1722711357049,0.17215772,60359.0,60353.0,0.023]
[1722711357251,0.165689,60354.0,60353.0,0.03231309]
[1722711357868,0.33784672,60354.0,60353.0,0.00931309]
[1722711358110,0.17216296,60354.0,60353.0,0.00931309]
[1722711358317,0.165686,60356.0,60352.0,0.166694]
[1722711358522,0.17216238,60355.0,60354.0,0.497067]
[1722711358696,0.17216238,60355.0,60354.0,0.851445]
[1722711358903,0.01391301,60360.0,60359.0,0.165675]
[1722711359074,0.01391301,60360.0,60357.0,0.33136]
[1722711359282,0.00091301,60360.0,60359.0,0.50632328]
[1722711359483,0.00091301,60360.0,60359.0,0.497025]
[1722711359710,0.00091301,60360.0,60359.0,0.50632328]
[1722711359921,0.00091301,60360.0,60359.0,0.17497328]
[1722711360067,0.00091301,60360.0,60359.0,1.03973767]
[1722711360265,0.00091301,60360.0,60359.0,1.66368767]
[1722711360480,0.01091301,60360.0,60359.0,1.63137417]
[1722711361068,0.01091301,60360.0,60359.0,1.64137417]
[1722711361277,0.01091301,60360.0,60359.0,1.64037417]
[1722711361505,0.00891301,60360.0,60359.0,1.3744315]
[1722711361763,0.00891301,60360.0,60359.0,0.35074917]
[1722711361924,0.00091301,60360.0,60359.0,0.00929828]
[1722711362129,0.00091301,60360.0,60359.0,0.01429828]
[1722711362356,0.00191301,60360.0,60359.0,0.005]
[1722711362528,0.16758501,60360.0,60359.0,0.00929828]
[1722711362730,0.00191301,60360.0,60359.0,0.004]
[1722711362931,0.00191301,60360.0,60359.0,0.34872417]
[1722711363147,0.00191301,60360.0,60359.0,1.00212589]
[1722711363348,0.00191301,60360.0,60359.0,1.01142417]
[1722711363518,0.00191301,60360.0,60359.0,0.68007417]
[1722711363725,0.00191301,60360.0,60359.0,0.01729828]
[1722711363726,0.49893001,60360.0,60359.0,0.01729828]
[1722711363921,0.16758501,60360.0,60359.0,0.01329828]
[1722711364221,0.83027501,60360.0,60359.0,0.01329828]
[1722711364432,1.45997416,60360.0,60359.0,0.01529828]
[1722711364640,1.45997416,60360.0,60359.0,0.006]
[1722711365371,1.79131916,60360.0,60359.0,0.006]
[1722711365565,2.18631934,60360.0,60359.0,0.006]
[1722711365760,2.18631934,60360.0,60359.0,0.002]
[1722711365964,0.331394,60351.0,60345.0,0.165711]
[1722711366191,0.59611383,60350.0,60346.0,0.16571]
[1722711366364,0.15309716,60360.0,60346.0,0.00933036]
[1722711366365,0.43041383,60349.0,60346.0,0.00933036]
[1722711366581,0.43041383,60348.0,60347.0,0.023]
[1722711366721,0.59611883,60348.0,60347.0,0.023]
[1722711367084,0.331427,60345.0,60341.0,0.00932]
[1722711367288,0.1298,60346.0,60341.0,0.00932]
[1722711367289,0.497166,60342.0,60341.0,0.00932]
[1722711367581,0.33787615,60342.0,60341.0,0.00932]
[1722711367872,0.33792059,60342.0,60341.0,0.00932]
[1722711368140,0.17219859,60342.0,60341.0,0.00932]
[1722711368325,0.17219926,60342.0,60341.0,0.00932]
[1722711368662,0.33792126,60342.0,60341.0,0.00932]
[1722711368867,1.00080926,60342.0,60341.0,0.01032]
[1722711369048,1.00080926,60342.0,60341.0,0.00932]
[1722711369469,1.00280926,60342.0,60341.0,0.00932]
[1722711369670,1.00180926,60342.0,60341.0,0.00932]
[1722711369867,1.2591172,60342.0,60341.0,0.00932]
[1722711370073,1.00080926,60342.0,60341.0,0.01866271]
[1722711370320,1.00780926,60342.0,60341.0,0.01032]
[1722711370547,1.59756001,60342.0,60341.0,0.01032]
[1722711371087,2.09000401,60342.0,60341.0,0.01032]
[1722711371992,1.60256001,60342.0,60341.0,0.01032]
[1722711372384,1.27111601,60342.0,60341.0,0.01032]
[1722711372736,0.93967201,60342.0,60341.0,0.01032]
[1722711372937,0.60822801,60342.0,60341.0,0.01032]
[1722711373141,0.44250601,60342.0,60341.0,0.01032]
[1722711373351,0.18419926,60342.0,60341.0,0.01966271]
[1722711373551,0.18419926,60342.0,60341.0,0.176044]
[1722711373749,0.18419926,60342.0,60341.0,0.01966271]
[1722711374034,0.18419926,60342.0,60341.0,0.9883866]
[1722711374212,0.18419926,60342.0,60341.0,0.6569376]
[1722711374386,0.18419926,60342.0,60341.0,0.9883866]
[1722711374596,0.21018648,60342.0,60341.0,0.9883866]
[1722711374787,0.21017723,60342.0,60341.0,0.6569376]
[1722711375511,0.21017723,60342.0,60341.0,0.04266271]
[1722711375711,0.37589923,60342.0,60341.0,0.01966271]
[1722711375977,0.34991201,60342.0,60341.0,0.01966271]
[1722711376203,0.68135601,60342.0,60341.0,0.01966271]
[1722711376690,0.68135601,60342.0,60341.0,0.01032]
[1722711377465,0.18419001,60342.0,60341.0,0.01032]
[1722711377731,0.18419001,60342.0,60341.0,0.04266271]
[1722711377981,0.18419001,60342.0,60341.0,0.53983571]
[1722711378251,0.18419401,60342.0,60341.0,0.53983571]
[1722711378731,0.012,60342.0,60341.0,0.53983571]
[1722711378998,0.18419374,60342.0,60341.0,0.20838671]
[1722711379253,0.18419374,60342.0,60341.0,0.7055866]
[1722711379531,0.18419374,60342.0,60341.0,0.2084136]
[1722711379714,0.18419374,60342.0,60341.0,0.04266271]
[1722711380122,0.34991574,60342.0,60341.0,0.04266271]
[1722711380327,0.67435974,60342.0,60341.0,0.01866271]
[1722711380529,0.67435974,60342.0,60341.0,0.00932]
[1722711380952,0.67435974,60342.0,60341.0,0.01866271]
[1722711381143,0.66935974,60342.0,60341.0,0.00932]
[1722711381482,0.67035974,60342.0,60341.0,0.00932]
[1722711381689,0.67036882,60342.0,60341.0,0.00932]
[1722711382103,0.67536882,60342.0,60341.0,0.00932]
[1722711382306,0.67536882,60342.0,60341.0,0.01866271]
[1722711382519,1.00681282,60342.0,60341.0,0.01866271]
[1722711382730,0.67536882,60342.0,60341.0,0.01866271]
[1722711382913,0.68236882,60342.0,60341.0,0.01966271]
[1722711383350,0.68236882,60342.0,60341.0,0.01032]
[1722711383619,1.14651282,60342.0,60341.0,0.01032]
[1722711383823,1.14651282,60342.0,60341.0,0.01966271]
[1722711384031,1.14651282,60342.0,60341.0,0.01032]
[1722711384695,1.14651282,60342.0,60341.0,0.11032]
[1722711385140,1.01382389,60342.0,60341.0,0.11032]
[1722711385755,0.35093589,60342.0,60341.0,0.11032]
[1722711385957,0.68237989,60342.0,60341.0,0.11032]
[1722711386159,0.68237989,60342.0,60341.0,0.11966271]
[1722711386337,0.35093589,60342.0,60341.0,0.11966271]
[1722711386581,0.35093589,60342.0,60341.0,0.11032]
[1722711386785,0.35093589,60342.0,60341.0,0.11966271]
[1722711386786,0.68237989,60342.0,60341.0,0.11966271]
[1722711386989,1.01382389,60342.0,60341.0,0.11966271]
[1722711388376,1.34526789,60342.0,60341.0,0.11032]
[1722711388579,1.47386789,60342.0,60341.0,0.11032]
[1722711388924,1.47386567,60342.0,60341.0,0.11032]
[1722711389825,2.36717523,60342.0,60341.0,0.11032]
[1722711390011,2.53942712,60342.0,60341.0,0.11032]
[1722711390599,2.46717523,60342.0,60341.0,0.11032]
[1722711390814,1.96298034,60342.0,60341.0,0.10932]
[1722711391026,1.72519298,60342.0,60341.0,0.10932]
[1722711391232,1.27914898,60342.0,60341.0,0.11032]
[1722711391402,1.02082167,60342.0,60341.0,0.11032]
[1722711391799,0.68937767,60342.0,60341.0,0.11966271]
[1722711392033,0.68938127,60342.0,60341.0,0.11966271]
[1722711392184,1.02082527,60342.0,60341.0,0.11966271]
[1722711392399,0.68938127,60342.0,60341.0,0.11966271]
[1722711392599,0.67538127,60342.0,60341.0,0.11866271]
[1722711392821,1.00682527,60342.0,60341.0,0.11866271]
[1722711393225,1.2651487,60342.0,60341.0,0.10932]
[1722711394025,1.2781487,60342.0,60341.0,0.10932]
[1722711394232,1.4159268,60342.0,60341.0,0.10932]